fUSD/lending_fUSD_20240218
["ID","MTS","AMOUNT","RATE_DAILY","PERIOD"]
[314404499,1708291852634,-454.29723993,0.00039999,2]
[314404500,1708291852644,-339.53739081,0.00039999,2]
[314404501,1708291852654,-454.29723993,0.00039999,2]
[314404502,1708291852663,-339.53739081,0.00039999,2]
[314404503,1708291852673,-454.29723993,0.00039999,2]
[314404504,1708291852683,-339.53739081,0.00039999,2]
[314404505,1708291852693,-454.29723993,0.00039999,2]
[314404506,1708291852702,-339.53739081,0.00039999,2]
[314404507,1708291852711,-454.29723993,0.00039999,2]
[314404508,1708291852721,-339.53739081,0.00039999,2]
[314404509,1708291852730,-454.29723993,0.00039999,2]
[314404510,1708291852740,-339.53739081,0.00039999,2]
[314404511,1708291852749,-454.29723993,0.00039999,2]
[314404512,1708291852758,-454.29723993,0.00039999,2]
[314404513,1708291852767,-100000.0,0.0004,10]
[314404514,1708291852777,-2107.6231916,0.0004,30]
[314404515,1708291852786,-10634870.50355207,0.0004,30]
[314404516,1708291852796,-155.0,0.0004,4]
[314404517,1708291852805,-200.0,0.0004,30]
[314404518,1708291852814,-23678.5216938,0.0004,7]
[314404519,1708291852823,-1102.90428393,0.0004,30]
[314404520,1708291852832,-672.90046358,0.0004,30]
[314404521,1708291852842,-2048.74725258,0.0004,2]
[314404522,1708291852851,-489.48484888,0.0004,7]
[314404523,1708291852860,-703.23655444,0.0004,7]
[314404524,1708291852869,-539209.77047544,0.0004,2]
[314404525,1708291853035,-162030.12404975,0.0004,2]
[314404526,1708291853051,-373.5132,0.00035616,2]
[314404527,1708291853064,-126.4868,0.00035616,2]
[314404528,1708291853073,-2810.68912683,0.0004,2]
[314404529,1708291853089,-2989.10141033,0.0004,2]
[314404530,1708291853101,-3990.97001315,0.0004,2]
[314404531,1708291853113,-10551.42035041,0.0004,2]
[314404532,1708291853223,-152.58867806,0.00036699,2]
[314404533,1708291853233,-152.58867806,0.00037115,2]
[314404534,1708291853243,-152.58867806,0.0003753,2]
[314404535,1708291853252,-152.58867806,0.00037946,2]
[314404536,1708291853262,-25336.97670277,0.0004,2]
[314404537,1708291853274,-1574.49978919,0.0004,2]
[314404538,1708291853289,-332.89583832,0.0004,2]
[314404539,1708291853327,-1595.76436411,0.0004,2]
[314404546,1708293032298,-170.35551155,0.00027899,5]
[314404547,1708293032308,-206.0,0.00029304,2]
[314404548,1708293032318,-188.09486788,0.00031146,2]
[314404549,1708293032354,-598.90513212,0.00031146,2]
[314404550,1708293032363,-1016.8091,0.00031147,2]
[314404551,1708293032373,-776.9,0.00032296,2]
[314404552,1708293032382,-153.41977033,0.000326,2]
[314404553,1708293032392,-300.0,0.000327,2]
[314404554,1708293032401,-150.0,0.00032798,2]
[314404555,1708293032411,-25891.82752491,0.00032799,4]
[314404556,1708293032422,-1940.0,0.000328,2]
[314404557,1708293032432,-15689.0,0.000328,2]
[314404558,1708293032444,-499.99,0.00032962,2]
[314404559,1708293032454,-153.41977033,0.00033819,2]
[314404560,1708293032464,-200.0,0.00033972,2]
[314404561,1708293032473,-214.6,0.00033979,2]
[314404562,1708293032484,-581.77,0.00034051,2]
[314404563,1708293032494,-17698.82,0.00034066,2]
[314404564,1708293032659,-250.0,0.0003417,2]
[314404565,1708293032715,-500.0,0.00034188,2]
[314404566,1708293032725,-2000.0,0.00034198,2]
[314404567,1708293032735,-250.0,0.00034199,2]
[314404568,1708293032744,-1186.25,0.00034202,2]
[314404569,1708293032753,-904.1,0.00034223,2]
[314404570,1708293032763,-200.0,0.00034223,2]
[314404571,1708293032772,-643.47,0.00034223,2]
[314404572,1708293032781,-152.9,0.00034227,2]
[314404573,1708293032792,-151.97,0.0003424,2]
[314404574,1708293032801,-768.56649328,0.00034269,4]
[314404575,1708293032810,-151.97,0.00034339,2]
[314404576,1708293032820,-1717.77,0.00034354,2]
[314404577,1708293032829,-151.97,0.00034438,2]
[314404578,1708293032838,-168.94,0.00034441,2]
[314404579,1708293032847,-8331.31,0.00034445,2]
[314404580,1708293032857,-23890.0,0.00034448,2]
[314404581,1708293032866,-500.0,0.00034456,2]
[314404583,1708293032875,-150.0,0.00034463,2]
[314404585,1708293032884,-842.899881,0.0003452,2]
[314404587,1708293032894,-5210.24,0.00034521,2]
[314404589,1708293032903,-1680.44,0.00034532,2]
[314404590,1708293032912,-151.97,0.00034537,2]
[314404592,1708293032922,-776.9,0.0003456,2]
[314404594,1708293032931,-151.97,0.00034636,2]
[314404596,1708293032941,-8331.31,0.00034644,2]
[314404598,1708293032950,-1370.6,0.00034653,2]
[314404600,1708293032959,-151.97,0.00034736,2]
[314404602,1708293032968,-1264.349822,0.00034794,2]
[314404603,1708293032978,-151.97,0.00034835,2]
[314404604,1708293032987,-8331.31,0.00034843,2]
[314404605,1708293032996,-169.97,0.00034848,2]
[314404606,1708293033006,-1685.799762,0.00034931,2]
[314404607,1708293033015,-151.97,0.00034934,2]
[314404608,1708293033024,-151.97,0.00035033,2]
[314404609,1708293033034,-153.41977033,0.00035037,2]
[314404610,1708293033044,-8331.31,0.00035042,2]
[314404611,1708293033054,-2107.249703,0.00035068,2]
[314404612,1708293033063,-151.97,0.00035132,2]
[314404613,1708293033072,-151.97,0.00035231,2]
[314404614,1708293033082,-8331.31,0.00035241,2]
[314404615,1708293033092,-151.97,0.0003533,2]
[314404616,1708293033101,-2950.149585,0.00035342,2]
[314404617,1708293033110,-151.97,0.00035429,2]
[314404618,1708293033120,-8331.31,0.0003544,2]
[314404619,1708293033130,-206.0,0.00035443,13]
[314404620,1708293033139,-166.17,0.00035528,2]
[314404621,1708293033149,-151.97,0.00035529,2]
[314404622,1708293033159,-150.0,0.00035596,2]
[314404623,1708293033169,-375.14,0.00035605,2]
[314404624,1708293033179,-503.23935169,0.00035616,2]
[314404625,1708293033190,-322.02855548,0.00035616,2]
[314404626,1708293033200,-500.0,0.00035616,2]
[314404627,1708293033210,-500.0,0.00035616,2]
[314404628,1708293033220,-500.0,0.00035616,2]
[314404629,1708293033230,-500.0,0.00035616,2]
[314404630,1708293033239,-500.0,0.00035616,2]
[314404631,1708293033248,-500.0,0.00035616,2]
[314404632,1708293033258,-500.0,0.00035616,2]
[314404633,1708293033267,-500.0,0.00035616,2]
[314404634,1708293033277,-500.0,0.00035616,2]
[314404635,1708293033286,-500.0,0.00035616,2]
[314404636,1708293033295,-246.4095912,0.00035616,2]
[314404637,1708293033304,-861.81,0.00035616,2]
[314404638,1708293033314,-861.81,0.00035616,2]
[314404639,1708293033323,-861.81,0.00035616,2]
[314404640,1708293033333,-861.81,0.00035616,2]
[314404641,1708293033342,-861.81,0.00035616,2]
[314404642,1708293033351,-151.97,0.00035628,2]
[314404643,1708293033360,-908.26,0.00035635,2]
[314404644,1708293033369,-8331.31,0.00035639,2]
[314404645,1708293033378,-151.97,0.00035727,2]
[314404646,1708293033388,-5210.24,0.00035798,2]
[314404647,1708293033397,-151.97,0.00035826,2]
[314404648,1708293033407,-8331.31,0.00035838,2]
[314404649,1708293033416,-1000.0,0.000359,2]
[314404650,1708293033426,-151.97,0.00035925,2]
[314404651,1708293033437,-1717.77,0.00035998,2]
[314404652,1708293033447,-493.597711,0.00036,4]
[314404653,1708293033456,-2556.85,0.00036,2]
[314404654,1708293033465,-151.97,0.00036024,2]
[314404655,1708293033475,-8331.31,0.00036037,2]
[314404656,1708293033485,-210.0,0.00036078,2]
[314404657,1708293033494,-8331.31,0.00036236,2]
[314404658,1708293033503,-153.41977033,0.00036256,2]
[314404659,1708293033513,-625.84129643,0.0003626,2]
[314404660,1708293033522,-3087.45,0.00036261,2]
[314404661,1708293033532,-1871.03,0.00036261,2]
[314404662,1708293033541,-15791.89,0.00036261,2]
[314404663,1708293033550,-13442.04,0.00036261,2]
[314404664,1708293033559,-1828.64461,0.00036352,2]
[314404665,1708293033568,-2397.8667043,0.00036389,2]
[314404666,1708293033577,-2397.86670421,0.00036389,2]
[314404667,1708293033587,-163.18,0.00036438,2]
[314404668,1708293033596,-2397.86670421,0.00036494,2]
[314404669,1708293033606,-200.0,0.00036536,2]
[314404670,1708293033615,-167.58,0.00036563,2]
[314404671,1708293033625,-512.07418932,0.0003666,2]
[314404672,1708293033634,-543.7968185,0.0003666,2]
[314404673,1708293033643,-500.0,0.0003666,2]
[314404674,1708293033652,-472.6876181,0.0003666,2]
[314404675,1708293033661,-500.0,0.0003666,2]
[314404676,1708293033670,-500.0,0.0003666,2]
[314404677,1708293033679,-516.52955184,0.0003666,2]
[314404678,1708293033689,-521.43321083,0.0003666,2]
[314404679,1708293033698,-500.0,0.0003666,2]
[314404680,1708293033707,-500.0,0.0003666,2]
[314404681,1708293033716,-500.0,0.0003666,2]
[314404682,1708293033725,-507.89540086,0.0003666,2]
[314404683,1708293033734,-500.0,0.0003666,2]
[314404684,1708293033743,-500.0,0.0003666,2]
[314404685,1708293033752,-500.0,0.0003666,2]
[314404686,1708293033762,-523.47258125,0.0003666,2]
[314404687,1708293033771,-500.0,0.0003666,2]
[314404688,1708293033781,-500.0,0.00036797,2]
[314404689,1708293033790,-500.0,0.00036797,2]
[314404690,1708293033799,-2134.09754346,0.00036798,2]
[314404691,1708293033808,-2134.09754337,0.00036798,2]
[314404692,1708293033818,-2134.09754337,0.00036798,2]
[314404693,1708293033828,-500.0,0.00036799,2]
[314404694,1708293033838,-500.0,0.00036799,2]
[314404695,1708293033847,-861.81,0.00036799,2]
[314404696,1708293033856,-3371.599525,0.000368,2]
[314404697,1708293033865,-11037.9146,0.00036813,2]
[314404698,1708293033874,-776.9,0.00036824,2]
[314404699,1708293033885,-500.0,0.00036899,2]
[314404700,1708293033894,-500.0,0.00036899,2]
[314404701,1708293033904,-500.0,0.00036899,2]
[314404702,1708293033914,-500.0,0.00036899,2]
[314404703,1708293033923,-49288.4158,0.000369,2]
[314404704,1708293033933,-5645.7581,0.000369,3]
[314404705,1708293033942,-333.44,0.00036904,2]
[314404706,1708293033951,-500.0,0.00036999,2]
[314404707,1708293033961,-508.26838716,0.00036999,2]
[314404708,1708293033970,-500.0,0.00036999,2]
[314404709,1708293033979,-500.0,0.00036999,2]
[314404710,1708293033989,-861.81,0.00036999,2]
[314404711,1708293033998,-861.81,0.00036999,2]
[314404712,1708293034008,-12587.0,0.00037,2]
[314404713,1708293034018,-12894.15,0.00037,2]
[314404714,1708293034027,-7123.24327113,0.00037,4]
[314404715,1708293034037,-2134.09754337,0.00037048,2]
[314404716,1708293034046,-2397.86670421,0.00037048,2]
[314404717,1708293034056,-5210.24,0.00037075,2]
[314404718,1708293034065,-333.44,0.00037099,2]
[314404719,1708293034074,-500.0,0.00037099,2]
[314404720,1708293034083,-500.0,0.00037099,2]
[314404721,1708293034092,-500.0,0.00037099,2]
[314404722,1708293034102,-861.81,0.00037099,2]
[314404723,1708293034112,-861.81,0.00037099,2]
[314404724,1708293034121,-861.81,0.00037099,2]
[314404725,1708293034130,-333.44,0.00037293,2]
[314404726,1708293034139,-375.14,0.00037386,2]
[314404727,1708293034148,-153.41977033,0.00037474,2]
[314404728,1708293034157,-166.17,0.00037483,2]
[314404729,1708293034166,-333.44,0.00037487,2]
[314404730,1708293034175,-1706.45195904,0.00037537,2]
[314404731,1708293034185,-2134.09754337,0.00037602,2]
[314404732,1708293034194,-2397.86670421,0.00037602,2]
[314404733,1708293034203,-99843.19868744,0.00037624,2]
[314404734,1708293034217,-591.89283355,0.00037624,2]
[314404735,1708293034228,-1556.12664025,0.00037624,2]
[314404736,1708293034244,-682.93268563,0.00037624,2]
[314404737,1708293034255,-428.93045684,0.00037624,2]
[314404738,1708293034266,-414.96820624,0.00037624,2]
[314404739,1708293034285,-3394.12477724,0.00037624,2]
[314404740,1708293034304,-10378.0,0.00037624,2]
[314404742,1708293038260,-1000.0,0.00034521,2]
[314404743,1708293038270,-500.0,0.0003626,2]
[314404744,1708293038280,-8897.9544,0.00037624,2]
[314404745,1708293038375,-402.12299413,0.00037624,2]
[314404746,1708293038437,-580.4,0.00037624,2]
[314404747,1708293038450,-1925.52995797,0.00037624,2]
[314404748,1708293038461,-47204.92780618,0.00037624,2]
[314404751,1708293040937,-779.26,0.00037624,2]
[314404752,1708293040953,-15795.79420629,0.00037624,2]
[314404753,1708293040965,-2203.477581,0.00037624,2]
[314404754,1708293040977,-2074.298,0.00037624,2]
[314404755,1708293040988,-453.59955795,0.00037624,2]
[314404756,1708293041000,-267.3488226,0.00037624,2]
[314404757,1708293041023,-3145.40224529,0.00037624,2]
[314404773,1708293043178,-3657.97606834,0.00037624,2]
[314404774,1708293043235,-72867.73407306,0.00037624,2]
[314404775,1708293043246,-158.3,0.00037637,2]
[314404776,1708293043255,-1717.77,0.00037642,2]
[314404777,1708293043264,-180.0,0.00037671,2]
[314404778,1708293043274,-333.44,0.00037681,2]
[314404779,1708293043283,-2000.0,0.000378,2]
[314404780,1708293043292,-323.14,0.000378,2]
[314404781,1708293043301,-154.7,0.000378,2]
[314404782,1708293043310,-333.44,0.00037876,2]
[314404783,1708293043319,-500.0,0.00037878,2]
[314404784,1708293043329,-861.81,0.00037878,2]
[314404785,1708293043338,-500.0,0.00037879,2]
[314404786,1708293043347,-500.0,0.00037879,2]
[314404787,1708293043356,-500.0,0.00037879,2]
[314404788,1708293043365,-500.0,0.00037879,2]
[314404789,1708293043374,-500.0,0.00037879,2]
[314404790,1708293043384,-500.0,0.00037879,2]
[314404791,1708293043393,-500.0,0.00037879,2]
[314404792,1708293043402,-500.0,0.00037879,2]
[314404793,1708293043411,-500.0,0.00037879,2]
[314404794,1708293043420,-292.95,0.00037879,2]
[314404795,1708293043429,-861.81,0.00037879,2]
[314404796,1708293043443,-861.81,0.00037879,2]
[314404797,1708293043452,-861.81,0.00037879,2]
[314404798,1708293043462,-861.81,0.00037879,2]
[314404799,1708293043472,-861.81,0.00037879,2]
[314404800,1708293043481,-861.81,0.00037879,2]
[314404801,1708293043491,-861.81,0.00037879,2]
[314404802,1708293043500,-861.81,0.00037879,2]
[314404803,1708293043510,-861.81,0.00037879,2]
[314404804,1708293043520,-861.81,0.00037879,2]
[314404805,1708293043530,-861.81,0.00037879,2]
[314404806,1708293043539,-861.96,0.00037879,2]
[314404807,1708293043548,-500.0,0.00037884,2]
[314404808,1708293043557,-665.25,0.00037884,2]
[314404809,1708293043567,-666.86,0.00037884,2]
[314404811,1708293043576,-500.0,0.00037884,2]
[314404812,1708293043585,-400.99922187,0.00037884,2]
[314404813,1708293043594,-500.0,0.00037884,2]
[314404814,1708293043603,-500.0,0.00037884,2]
[314404815,1708293043613,-1607.97,0.00037884,2]
[314404816,1708293043622,-2691.0,0.00037885,2]
[314404817,1708293043631,-1866.0,0.00037885,2]
[314404818,1708293043640,-1370.0,0.00037885,2]
[314404819,1708293043649,-454.0,0.00037885,2]
[314404820,1708293043658,-842.0,0.00037885,2]
[314404821,1708293043668,-953.0,0.00037885,2]
[314404822,1708293043677,-533.0,0.00037885,2]
[314404823,1708293043687,-709.0,0.00037885,2]
[314404824,1708293043696,-1949.0,0.00037885,2]
[314404825,1708293043705,-858.0,0.00037885,2]
[314404826,1708293043714,-276.0,0.00037885,2]
[314404827,1708293043723,-429.0,0.00037885,2]
[314404828,1708293043732,-1005.0,0.00037885,2]
[314404829,1708293043741,-1138.0,0.00037885,2]
[314404830,1708293043750,-321.0,0.00037885,2]
[314404831,1708293043758,-150.0,0.00037885,2]
[314404832,1708293043767,-2886.0,0.00037885,2]
[314404833,1708293043776,-343.0,0.00037885,2]
[314404834,1708293043785,-397.0,0.00037885,2]
[314404835,1708293043794,-454.0,0.00037885,2]
[314404836,1708293043803,-168.307,0.00037885,2]
[314404837,1708293043813,-28785.603,0.00037885,2]
[314404838,1708293043822,-19859.0,0.00037885,2]
[314404839,1708293043831,-5633.0,0.00037885,2]
[314404840,1708293043841,-2291.0,0.00037885,2]
[314404841,1708293043850,-7422.0,0.00037885,2]
[314404842,1708293043859,-8169.0,0.00037885,2]
[314404843,1708293043869,-4100.0,0.00037885,2]
[314404844,1708293043879,-2929.0,0.00037885,2]
[314404845,1708293043888,-184.721,0.00037885,2]
[314404846,1708293043897,-1038.0,0.00037885,2]
[314404847,1708293043906,-231.26612394,0.00037891,8]
[314404848,1708293043915,-1000.0,0.00037891,10]
[314404849,1708293043925,-1000.0,0.00037891,10]
[314404850,1708293043934,-291.68238,0.00037891,8]
[314404851,1708293043944,-406.87508605,0.00037891,8]
[314404852,1708293043953,-203.43754303,0.00037891,8]
[314404853,1708293043963,-159310.164128,0.000379,3]
[314404854,1708293043972,-104510.71044506,0.00038,3]
[314404884,1708293046453,-16608.45645272,0.00038,3]
[314404885,1708293046465,-309.55552335,0.00038,3]
[314404886,1708293070685,168000.0,0.00023,2]
[314404887,1708293070712,2290878.16280353,0.00023,2]
[314404888,1708293233247,758636.42841104,0.00023,2]
[314404890,1708293253751,280.71308786,0.00012,30]
[314404895,1708293271144,4935.5773542,0.00025,30]
[314404896,1708293628688,-300.0,0.00027999,2]
[314404926,1708294231437,-2965.2234,0.000279,2]
[314404928,1708294231447,-153.41977033,0.000279,2]
[314404930,1708294231456,-155.0,0.00027999,2]
[314404931,1708294231466,-138410.59232351,0.00028,2]
[314404932,1708294231475,-14120.0,0.000326,2]
[314404933,1708294231484,-1917.64,0.0003293,2]
[314404934,1708294231496,-703.22,0.00033797,2]
[314404935,1708294231510,-150.1,0.000349,2]
[314404936,1708294231520,-63001.30984024,0.00035,4]
[314404937,1708294231612,-2679.00109367,0.00035,4]
[314404938,1708294231627,-5462.90562595,0.00035,4]
[314404939,1708294231638,-1917.64,0.0003512,2]
[314404940,1708294231647,-23880.0,0.00035186,2]
[314404941,1708294231658,-250.0,0.0003522,2]
[314404942,1708294231668,-499.99,0.0003522,2]
[314404943,1708294231682,-2084.09,0.00035241,2]
[314404944,1708294231692,-6607.0,0.0003529,2]
[314404945,1708294231702,-540.26,0.00035477,2]
[314404946,1708294231712,-484.8,0.00035477,2]
[314404947,1708294231722,-1009.51,0.00035535,2]
[314404948,1708294231731,-73990.39293508,0.000356,2]
[314404949,1708294231741,-1000.0,0.000356,2]
[314404950,1708294231750,-500.0,0.00035616,2]
[314404951,1708294231759,-152.9,0.00035657,2]
[314404952,1708294231768,-658.36,0.00035758,2]
[314404953,1708294231779,-371.42717063,0.00035758,2]
[314404954,1708294231787,-509.40456441,0.00035758,2]
[314404955,1708294231798,-524.51717745,0.00035758,2]
[314404956,1708294231807,-639.08,0.00035758,2]
[314404957,1708294231820,-500.0,0.00035758,2]
[314404958,1708294231830,-500.0,0.00035758,2]
[314404959,1708294231839,-500.0,0.00035758,2]
[314404960,1708294231849,-500.0,0.00035758,2]
[314404961,1708294231861,-500.0,0.00035758,2]
[314404962,1708294231871,-507.57437725,0.00035758,2]
[314404963,1708294231881,-500.0,0.00035758,2]
[314404964,1708294231892,-505.55576868,0.00035758,2]
[314404965,1708294231902,-1561.8,0.00035758,2]
[314404966,1708294231911,-500.0,0.00035758,2]
[314404967,1708294231921,-500.0,0.00035758,2]
[314404968,1708294231935,-500.0,0.00035758,2]
[314404969,1708294231945,-500.0,0.00035758,2]
[314404970,1708294231954,-167.58,0.00035758,2]
[314404971,1708294231965,-171.5,0.00035992,2]
[314404972,1708294231975,-493.597711,0.00036,4]
[314404973,1708294231985,-703.22,0.00036061,2]
[314404974,1708294231994,-1400.36,0.00036076,2]
[314404975,1708294232003,-261.03,0.00036193,2]
[314404976,1708294232013,-365.32926969,0.00036388,2]
[314404977,1708294232022,-3000.0,0.000365,2]
[314404978,1708294232035,-938.84,0.00036502,2]
[314404979,1708294232045,-2084.09,0.00036544,2]
[314404980,1708294232055,-500.0,0.0003666,2]
[314404981,1708294232065,-500.0,0.0003666,2]
[314404982,1708294232075,-500.0,0.0003666,2]
[314404983,1708294232085,-1535.5743,0.000367,2]
[314404984,1708294232094,-1067.04877173,0.00036798,2]
[314404985,1708294232103,-1067.04877168,0.00036798,2]
[314404986,1708294232113,-1067.04877168,0.00036798,2]
[314404987,1708294232122,-1067.04877168,0.00036798,2]
[314404988,1708294232132,-1067.04877168,0.00036798,2]
[314404989,1708294232142,-66736.42137932,0.000368,2]
[314404990,1708294232152,-599.0,0.00036944,2]
[314404991,1708294232161,-930.27297686,0.00036944,2]
[314404992,1708294237427,-1019.72702314,0.00036944,2]
[314404993,1708294237438,-858.0,0.00036944,2]
[314404994,1708294237448,-429.0,0.00036944,2]
[314404995,1708294237457,-396.0,0.00036944,2]
[314404996,1708294237466,-949.96199992,0.00036944,2]
[314404997,1708294237479,-55.03800008,0.00036944,2]
[314404998,1708294237489,-2886.0,0.00036944,2]
[314404999,1708294237498,-247.259,0.00036944,2]
[314405000,1708294237508,-1138.0,0.00036944,2]
[314405001,1708294237517,-444.638,0.00036944,2]
[314405002,1708294237526,-321.0,0.00036944,2]
[314405003,1708294237536,-2402.0,0.00036944,2]
[314405004,1708294237545,-585.745,0.00036944,2]
[314405005,1708294237555,-389.0,0.00036944,2]
[314405006,1708294237564,-4100.0,0.00036944,2]
[314405007,1708294237573,-2925.0,0.00036944,2]
[314405008,1708294237583,-2287.0,0.00036944,2]
[314405009,1708294237592,-8169.0,0.00036944,2]
[314405010,1708294237601,-19859.0,0.00036944,2]
[314405011,1708294237610,-5623.0,0.00036944,2]
[314405012,1708294237620,-7412.0,0.00036944,2]
[314405013,1708294237629,-1038.0,0.00036944,2]
[314405014,1708294237638,-250.0,0.00036982,2]
[314405015,1708294237648,-1067.04877168,0.00037017,2]
[314405016,1708294237658,-658.36,0.00037099,2]
[314405017,1708294237667,-639.08,0.00037099,2]
[314405018,1708294237676,-500.0,0.00037099,2]
[314405019,1708294237689,-1561.8,0.00037099,2]
[314405020,1708294237699,-500.0,0.00037099,2]
[314405021,1708294237708,-500.0,0.00037099,2]
[314405022,1708294237718,-42880.27306929,0.000371,3]
[314405036,1708294240161,-478.97531552,0.00035616,2]
[314405037,1708294240173,-21.02468448,0.00035616,2]
[314405038,1708294240184,-1688.18903146,0.000371,3]
[314405039,1708294240949,-285.849,0.000371,3]
[314405047,1708294242831,-266.45403777,0.000371,3]
[314405048,1708294242965,-123595.95947312,0.000371,3]
[314405049,1708294242975,-1621.12936105,0.000371,2]
[314405050,1708294242984,-2004.285423,0.000371,2]
[314405051,1708294242993,-1009.51,0.00037179,2]
[314405053,1708294243002,-3000.0,0.000372,2]
[314405054,1708294243012,-264.71552263,0.00037256,2]
[314405055,1708294243021,-500.0,0.00037257,2]
[314405056,1708294243031,-170461.02410228,0.00037258,2]
[314405057,1708294243039,-4668.15327792,0.00037481,2]
[314405058,1708294243048,-514.78,0.00037599,2]
[314405059,1708294243057,-3000.0,0.000376,2]
[314405060,1708294243067,-152.46688365,0.00037779,4]
[314405061,1708294243076,-171.5,0.00037791,2]
[314405062,1708294243086,-430.54820779,0.000378,11]
[314405063,1708294243095,-274.67,0.000378,2]
[314405064,1708294243104,-200.26191922,0.0003781,2]
[314405065,1708294243114,-200.0,0.0003781,5]
[314405066,1708294243123,-2084.09,0.00037848,2]
[314405067,1708294243132,-1067.04877168,0.00037855,2]
[314405068,1708294243141,-261.19647276,0.00037882,2]
[314405069,1708294243151,-771.98404556,0.00037882,2]
[314405070,1708294243161,-245.4,0.00037884,2]
[314405071,1708294243170,-2691.0,0.00037885,2]
[314405072,1708294243179,-523.773,0.00037885,2]
[314405073,1708294243189,-1866.0,0.00037885,2]
[314405074,1708294243199,-708.883,0.00037885,2]
[314405075,1708294243208,-842.0,0.00037885,2]
[314405079,1708294243218,-953.0,0.00037885,2]
[314405081,1708294243228,-440.645,0.00037885,2]
[314405082,1708294243237,-158.363,0.00037885,2]
[314405083,1708294243246,-1255.0,0.00037885,2]
[314405084,1708294243256,-1231.0,0.00037885,2]
[314405085,1708294243265,-216.0,0.00037885,2]
[314405086,1708294243275,-1253.28516,0.00037885,2]
[314405087,1708294243284,-224.62742323,0.00037891,8]
[314405088,1708294243293,-1000.0,0.00037891,10]
[314405089,1708294243303,-163.50590512,0.00037891,8]
[314405090,1708294243312,-590.13738984,0.00037891,8]
[314405091,1708294243321,-259.72212318,0.00037891,8]
[314405092,1708294243331,-1000.0,0.00037891,10]
[314405093,1708294243340,-288.79059997,0.00037891,8]
[314405094,1708294243349,-1000.0,0.00037891,10]
[314405095,1708294243359,-1214.62392794,0.00037891,8]
[314405096,1708294243368,-152.64547235,0.00037892,2]
[314405097,1708294243378,-19181.33175114,0.00037892,2]
[314405098,1708294243387,-155.0,0.00037894,2]
[314405099,1708294243397,-353.24,0.00037894,2]
[314405100,1708294243406,-3000.0,0.00037894,2]
[314405101,1708294243416,-3000.0,0.00037894,2]
[314405102,1708294243425,-3000.0,0.00037894,2]
[314405103,1708294243436,-3000.0,0.00037894,2]
[314405104,1708294243446,-3000.0,0.00037894,2]
[314405105,1708294243455,-3000.0,0.00037894,2]
[314405106,1708294243465,-3000.0,0.00037894,2]
[314405107,1708294243474,-3000.0,0.00037894,2]
[314405108,1708294243484,-3000.0,0.00037894,2]
[314405109,1708294243493,-3000.0,0.00037894,2]
[314405110,1708294243504,-3000.0,0.00037894,2]
[314405111,1708294243513,-3000.0,0.00037894,2]
[314405112,1708294243522,-3000.0,0.00037894,2]
[314405113,1708294243532,-3000.0,0.00037894,2]
[314405114,1708294243541,-3000.0,0.00037894,2]
[314405115,1708294243550,-3000.0,0.00037894,2]
[314405116,1708294243559,-5157.09746085,0.00037894,2]
[314405117,1708294243568,-658.36,0.00037899,2]
[314405118,1708294243577,-639.08,0.00037899,2]
[314405119,1708294243586,-610.27239632,0.00037899,2]
[314405120,1708294243596,-1561.8,0.00037899,2]
[314405121,1708294243605,-500.0,0.00037899,2]
[314405122,1708294243614,-500.0,0.00037899,2]
[314405123,1708294243624,-500.0,0.00037899,2]